Workbook

Sheet 開始
B1: 關於此範本
B2: 請使用此網站預算工具來追蹤網站的初期投資、獲益和成本。
B3: 在表格中輸入詳細資料，以供系統自動計算總計和評估指標。
B4: 附註：
B5: 我們已在 [預算工具] 工作表的欄 A 提供額外指示。此文字已刻意隱藏。若要移除文字，請選取欄 A，然後選取 [刪除]。若要取消隱藏文字，請選取欄 A，然後變更字型色彩。
B6: 若要深入了解此工作表中的表格，請在表格內按 SHIFT 並按 F10，選取 [表格] 選項，然後選取 [替代文字]。

Sheet 預算工具
B2: Quadrex 硬體
B3: 網站預算工具
B4: 2022-12-01
B6: 公司資料 | C6: 比率
B7: 必要報酬率 | C7: 10%
B8: 稅率 | C8: 30%
B10: 網站初期投資 | C10: 年份
B11: 硬體 (例如伺服器) | C11: HK$25,000.00
B12: 軟體 (例如電子商務型錄軟體) | C12: HK$15,000.00
B13: 開發 (例如協力廠商網站設計與開發) | C13: HK$150,000.00
B14: 初期投資總額 | C14: =SUBTOTAL(109,初期投資[年份]) -> HK$190,000.00
B16: 網站的獲益 | C16: 第 1 年 | D16: 第 2 年 | E16: 第 3 年
B17: 直接銷售 | C17: HK$15,000.00 | D17: HK$50,000.00 | E17: HK$75,000.00
B18: 增強促銷/銷售人員效率而帶來的銷售增益 | C18: HK$25,000.00 | D18: HK$25,000.00 | E18: HK$25,000.00
B19: 合作夥伴參與程度上升而帶來的銷售增益 | C19: HK$25,000.00 | D19: HK$25,000.00 | E19: HK$25,000.00
B20: 縮減的差旅成本 | C20: HK$25,000.00 | D20: HK$25,000.00 | E20: HK$25,000.00
B21: 縮減的客戶服務成本 | C21: HK$50,000.00 | D21: HK$50,000.00 | E21: HK$50,000.00
B22: 總獲益 | C22: =SUBTOTAL(109,獲益[第 1 年]) -> HK$140,000.00 | D22: =SUBTOTAL(109,獲益[第 2 年]) -> HK$175,000.00 | E22: =SUBTOTAL(109,獲益[第 3 年]) -> HK$200,000.00
B24: 成本 (不含初期投入資本) | C24: 第 1 年 | D24: 第 2 年 | E24: 第 3 年
B25: 銷售成本 | C25: HK$7,500.00 | D25: HK$25,000.00 | E25: HK$37,500.00
B26: 維護 | C26: HK$15,000.00 | D26: HK$15,000.00 | E26: HK$15,000.00
B27: 專案管理、客戶支援 | C27: HK$35,000.00 | D27: HK$35,000.00 | E27: HK$35,000.00
B28: 線上廣告、搜尋引擎註冊 | C28: HK$10,000.00 | D28: HK$10,000.00 | E28: HK$10,000.00
B29: 資本支出折舊 (使用期限以三年計) | C29: =初期投資[[#Totals],[年份]]/3 -> HK$63,333.33 | D29: =初期投資[[#Totals],[年份]]/3 -> HK$63,333.33 | E29: =初期投資[[#Totals],[年份]]/3 -> HK$63,333.33
B30: 總成本 | C30: =SUBTOTAL(109,成本[第 1 年]) -> HK$130,833.33 | D30: =SUBTOTAL(109,成本[第 2 年]) -> HK$148,333.33 | E30: =SUBTOTAL(109,成本[第 3 年]) -> HK$160,833.33
B32: 總計 | D32: 第 1 年 | E32: 第 2 年 | F32: 第 3 年
B33: 淨利 (成本) | D33: =獲益[[#Totals],[第 1 年]]-成本[[#Totals],[第 1 年]] -> HK$9,166.67 | E33: =獲益[[#Totals],[第 2 年]]-成本[[#Totals],[第 2 年]] -> HK$26,666.67 | F33: =獲益[[#Totals],[第 3 年]]-成本[[#Totals],[第 3 年]] -> HK$39,166.67
B34: 稅金 | D34: =D33*稅率 -> HK$2,750.00 | E34: =E33*稅率 -> HK$8,000.00 | F34: =F33*稅率 -> HK$11,750.00
B35: 稅後淨利 | D35: =D33-D34 -> HK$6,416.67 | E35: =E33-E34 -> HK$18,666.67 | F35: =F33-F34 -> HK$27,416.67
B36: 加入折舊 | D36: =C29 -> HK$63,333.33 | E36: =D29 -> HK$63,333.33 | F36: =E29 -> HK$63,333.33
B37: 現金流量 | C37: =-初期投資[[#Totals],[年份]] -> -HK$190,000.00 | D37: =D35+D36 -> HK$69,750.00 | E37: HK$82,000.00 | F37: HK$90,750.00
B38: 累計現金流量 | C38: =C37 -> -HK$190,000.00 | D38: =C38+D37 -> (HK$120,250.00) | E38: =D38+E37 -> (HK$38,250.00) | F38: =E38+F37 -> HK$52,500.00
B40: 評估指標 | C40: 數值
B41: 淨現值 (NPV) | C41: =C37+(NPV(ROR,D37:F37)) -> HK$9,359.50
B42: 內部報酬率 (IRR) | C42: =IRR(C37:F37) -> 12.66%
B43: 還本期限 (年計) | C43: =IF(F38<=0,"超過 3 年",IF(E38<=0,(F37-F38)/F37+2,IF(D38<=0,(E37-E38)/E37+1,IF(C38<=0,(D37-D38)/D37,"無")))) -> 2.42
